[Event "Titled Tuesday Blitz January 31 Early 2023"]
[White "Hoffmann, Asa"]
[Black "Najdin, Danil"]
[WhiteFideId "2001470"]
[BlackFideId "4172426"]
[WhiteElo "2185"]
[BlackElo "2235"]
[Result "0-1"]
[Round "05"]
[TimeControl "180+2"]
[Date "2023.01.31"]
[WhiteClock "0:00:02"]
[BlackClock "0:00:07"]

1. d4 {[%clk 0:02:55]}  Nf6 {[%clk 0:02:55]} 2. Bg5 {[%clk 0:02:54]}  b6 {[%clk 0:02:50]} 3. f3 {[%clk 0:02:53]}  d5 {[%clk 0:02:46]} 4. c4 {[%clk 0:02:46]}  e6 {[%clk 0:02:31]} 5. Nc3 {[%clk 0:02:45]}  Bb4 {[%clk 0:02:25]} 6. Qa4+ {[%clk 0:02:43]}  Bd7 {[%clk 0:02:19]} 7. Qxb4 {[%clk 0:02:43]}  Nc6 {[%clk 0:02:19]} 8. Qb3 {[%clk 0:02:34]}  Nxd4 {[%clk 0:02:19]} 9. Qd1 {[%clk 0:02:33]}  c5 {[%clk 0:02:19]} 10. e3 {[%clk 0:02:31]}  Nf5 {[%clk 0:02:18]} 11. cxd5 {[%clk 0:02:27]}  h6 {[%clk 0:02:09]} 12. dxe6 {[%clk 0:02:24]}  hxg5 {[%clk 0:02:04]} 13. exd7+ {[%clk 0:02:23]}  Nxd7 {[%clk 0:02:05]} 14. e4 {[%clk 0:02:18]}  Nd4 {[%clk 0:02:03]} 15. Nge2 {[%clk 0:02:14]}  Ne6 {[%clk 0:02:01]} 16. Ng3 {[%clk 0:02:07]}  Nd4 {[%clk 0:01:56]} 17. Nf5 {[%clk 0:02:02]}  Nxf5 {[%clk 0:01:54]} 18. exf5 {[%clk 0:02:02]}  Qf6 {[%clk 0:01:21]} 19. Bb5 {[%clk 0:01:58]}  O-O-O {[%clk 0:01:19]} 20. Qa4 {[%clk 0:01:27]}  Kb8 {[%clk 0:00:42]} 21. O-O-O {[%clk 0:01:24]}  Ne5 {[%clk 0:00:39]} 22. Rxd8+ {[%clk 0:01:21]}  Rxd8 {[%clk 0:00:37]} 23. Rd1 {[%clk 0:01:20]}  Rxd1+ {[%clk 0:00:34]} 24. Qxd1 {[%clk 0:01:19]}  c4 {[%clk 0:00:28]} 25. Ne4 {[%clk 0:01:05]}  Qe7 {[%clk 0:00:14]} 26. Qd6+ {[%clk 0:00:45]}  Qc7 {[%clk 0:00:15]} 27. Qxc7+ {[%clk 0:00:43]}  Kxc7 {[%clk 0:00:16]} 28. Nd2 {[%clk 0:00:40]}  Nd3+ {[%clk 0:00:11]} 29. Kb1 {[%clk 0:00:40]}  Ne1 {[%clk 0:00:12]} 30. Bxc4 {[%clk 0:00:39]}  Nxg2 {[%clk 0:00:12]} 31. Bxf7 {[%clk 0:00:38]}  Nh4 {[%clk 0:00:12]} 32. Be6 {[%clk 0:00:37]}  Kd6 {[%clk 0:00:12]} 33. Kc2 {[%clk 0:00:36]}  Ke5 {[%clk 0:00:13]} 34. Kd3 {[%clk 0:00:36]}  Kf4 {[%clk 0:00:13]} 35. Ke2 {[%clk 0:00:36]}  Ng2 {[%clk 0:00:10]} 36. Nc4 {[%clk 0:00:33]}  Nh4 {[%clk 0:00:09]} 37. Ne3 {[%clk 0:00:29]}  Nxf3 {[%clk 0:00:08]} 38. Nd5+ {[%clk 0:00:29]}  Ke4 {[%clk 0:00:08]} 39. Ne7 {[%clk 0:00:23]}  Nd4+ {[%clk 0:00:07]} 40. Kd2 {[%clk 0:00:22]}  Nf3+ {[%clk 0:00:06]} 41. Kc3 {[%clk 0:00:21]}  Nxh2 {[%clk 0:00:07]} 42. Nc6 {[%clk 0:00:19]}  a5 {[%clk 0:00:04]} 43. Kc4 {[%clk 0:00:18]}  g4 {[%clk 0:00:04]} 44. Nd4 {[%clk 0:00:17]}  g3 {[%clk 0:00:04]} 45. Bd5+ {[%clk 0:00:16]}  Ke3 {[%clk 0:00:05]} 46. Ne6 {[%clk 0:00:14]}  Nf3 {[%clk 0:00:05]} 47. Bxf3 {[%clk 0:00:05]}  Kxf3 {[%clk 0:00:05]} 48. Nxg7 {[%clk 0:00:03]}  g2 {[%clk 0:00:06]} 49. f6 {[%clk 0:00:03]}  g1=Q {[%clk 0:00:06]} 50. f7 {[%clk 0:00:03]}  Qxg7 {[%clk 0:00:06]} 51. Kb5 {[%clk 0:00:02]}  Qxf7 {[%clk 0:00:07]} 0-1


[Site "https://www.chess.com"]

[Event "Titled Tuesday Blitz January 31 Early 2023"]
[White "Sukandar, Irine Kharisma"]
[Black "Mejia, Cherry Ann"]
[WhiteFideId "7101937"]
[BlackFideId "5206880"]
[WhiteElo "2390"]
[BlackElo "1935"]
[Result "1-0"]
[Round "05"]
[TimeControl "180+2"]
[Date "2023.01.31"]
[WhiteClock "0:01:49"]
[BlackClock "0:01:14"]

1. e4 {[%clk 0:02:52]}  c5 {[%clk 0:02:59]} 2. Nc3 {[%clk 0:02:52]}  a6 {[%clk 0:02:59]} 3. g3 {[%clk 0:02:47]}  b5 {[%clk 0:02:59]} 4. Bg2 {[%clk 0:02:47]}  Bb7 {[%clk 0:02:59]} 5. d3 {[%clk 0:02:47]}  e6 {[%clk 0:03:00]} 6. Nh3 {[%clk 0:02:43]}  Nf6 {[%clk 0:02:58]} 7. O-O {[%clk 0:02:42]}  d5 {[%clk 0:02:59]} 8. exd5 {[%clk 0:02:41]}  Nxd5 {[%clk 0:02:57]} 9. Ne4 {[%clk 0:02:35]}  Be7 {[%clk 0:02:51]} 10. Qh5 {[%clk 0:02:29]}  Nd7 {[%clk 0:02:33]} 11. Nhg5 {[%clk 0:02:22]}  g6 {[%clk 0:02:22]} 12. Qh6 {[%clk 0:02:06]}  Bf8 {[%clk 0:02:14]} 13. Qh3 {[%clk 0:02:00]}  h5 {[%clk 0:01:46]} 14. Nxe6 {[%clk 0:01:54]}  Qb6 {[%clk 0:01:14]} 15. Nxf8 {[%clk 0:01:51]}  Kxf8 {[%clk 0:01:14]} 16. Qxd7 {[%clk 0:01:49]} 1-0


[Site "https://www.chess.com"]

[Event "Titled Tuesday Blitz January 31 Early 2023"]
[White "Lucassen, Mickey"]
[Black "Fiorito, Francisco"]
[WhiteFideId "12919110"]
[BlackFideId "180165"]
[WhiteElo "2023"]
[BlackElo "2305"]
[Result "1-0"]
[Round "05"]
[TimeControl "180+2"]
[Date "2023.01.31"]
[WhiteClock "0:00:02"]
[BlackClock "0:00:01"]

1. d4 {[%clk 0:03:00]}  Nf6 {[%clk 0:02:59]} 2. Nc3 {[%clk 0:03:00]}  d5 {[%clk 0:02:57]} 3. Bf4 {[%clk 0:03:01]}  a6 {[%clk 0:02:57]} 4. e3 {[%clk 0:02:59]}  e6 {[%clk 0:02:56]} 5. g4 {[%clk 0:02:58]}  Bb4 {[%clk 0:02:50]} 6. Bd3 {[%clk 0:02:53]}  c5 {[%clk 0:02:45]} 7. a3 {[%clk 0:02:50]}  Bxc3+ {[%clk 0:02:44]} 8. bxc3 {[%clk 0:02:51]}  c4 {[%clk 0:02:44]} 9. Bf1 {[%clk 0:02:41]}  Ne4 {[%clk 0:02:30]} 10. Ne2 {[%clk 0:02:22]}  Nc6 {[%clk 0:02:26]} 11. Bg2 {[%clk 0:01:55]}  Qh4 {[%clk 0:02:17]} 12. O-O {[%clk 0:01:39]}  Qxg4 {[%clk 0:02:16]} 13. f3 {[%clk 0:01:39]}  Qg6 {[%clk 0:02:01]} 14. fxe4 {[%clk 0:01:39]}  dxe4 {[%clk 0:01:59]} 15. d5 {[%clk 0:01:36]}  exd5 {[%clk 0:01:59]} 16. Qxd5 {[%clk 0:01:37]}  O-O {[%clk 0:01:57]} 17. Qxe4 {[%clk 0:01:33]}  Bf5 {[%clk 0:01:57]} 18. Qxc4 {[%clk 0:01:30]}  Bxc2 {[%clk 0:01:57]} 19. Ng3 {[%clk 0:01:29]}  Bd3 {[%clk 0:01:57]} 20. Qb3 {[%clk 0:01:18]}  h5 {[%clk 0:01:50]} 21. Qxb7 {[%clk 0:01:02]}  Na5 {[%clk 0:01:46]} 22. Qd5 {[%clk 0:00:52]}  Nc4 {[%clk 0:01:39]} 23. Be4 {[%clk 0:00:49]}  Bxe4 {[%clk 0:01:36]} 24. Qxe4 {[%clk 0:00:48]}  Qxe4 {[%clk 0:01:14]} 25. Nxe4 {[%clk 0:00:49]}  Rfe8 {[%clk 0:01:14]} 26. Nd6 {[%clk 0:00:36]}  Nxd6 {[%clk 0:01:13]} 27. Bxd6 {[%clk 0:00:37]}  Rxe3 {[%clk 0:01:13]} 28. c4 {[%clk 0:00:38]}  h4 {[%clk 0:01:10]} 29. c5 {[%clk 0:00:38]}  Rc8 {[%clk 0:01:11]} 30. Rfe1 {[%clk 0:00:35]}  Rc3 {[%clk 0:01:09]} 31. Rac1 {[%clk 0:00:33]}  Rd3 {[%clk 0:01:08]} 32. a4 {[%clk 0:00:29]}  h3 {[%clk 0:01:08]} 33. Bg3 {[%clk 0:00:28]}  Rc6 {[%clk 0:01:07]} 34. Re8+ {[%clk 0:00:25]}  Kh7 {[%clk 0:01:07]} 35. Re4 {[%clk 0:00:25]}  g5 {[%clk 0:00:55]} 36. Re7 {[%clk 0:00:23]}  Kg6 {[%clk 0:00:55]} 37. Re4 {[%clk 0:00:19]}  f5 {[%clk 0:00:50]} 38. Rb4 {[%clk 0:00:19]}  f4 {[%clk 0:00:50]} 39. Bf2 {[%clk 0:00:20]}  Kf5 {[%clk 0:00:29]} 40. Rb6 {[%clk 0:00:20]}  Rxb6 {[%clk 0:00:29]} 41. cxb6 {[%clk 0:00:21]}  Rb3 {[%clk 0:00:30]} 42. a5 {[%clk 0:00:20]}  Kg4 {[%clk 0:00:29]} 43. Kf1 {[%clk 0:00:16]}  Kf3 {[%clk 0:00:29]} 44. Be1 {[%clk 0:00:14]}  Rb5 {[%clk 0:00:22]} 45. Rc7 {[%clk 0:00:13]}  g4 {[%clk 0:00:18]} 46. b7 {[%clk 0:00:13]}  Rb1 {[%clk 0:00:14]} 47. Rc3+ {[%clk 0:00:07]}  Ke4 {[%clk 0:00:13]} 48. Rc4+ {[%clk 0:00:08]}  Kf3 {[%clk 0:00:05]} 49. Rc7 {[%clk 0:00:04]}  Ke4 {[%clk 0:00:02]} 50. Re7+ {[%clk 0:00:04]}  Kf3 {[%clk 0:00:03]} 51. Rd7 {[%clk 0:00:03]}  Ke4 {[%clk 0:00:02]} 52. Ke2 {[%clk 0:00:04]}  Rb2+ {[%clk 0:00:01]} 53. Bd2 {[%clk 0:00:03]}  Rb3 {[%clk 0:00:01]} 54. Re7+ {[%clk 0:00:02]}  Kf5 {[%clk 0:00:01]} 55. Rf7+ {[%clk 0:00:02]}  Ke5 {[%clk 0:00:02]} 56. Rxf4 {[%clk 0:00:03]}  Rxb7 {[%clk 0:00:01]} 57. Rxg4 {[%clk 0:00:03]}  Kd5 {[%clk 0:00:02]} 58. Rh4 {[%clk 0:00:03]}  Re7+ {[%clk 0:00:03]} 59. Be3 {[%clk 0:00:03]}  Kc6 {[%clk 0:00:02]} 60. Rxh3 {[%clk 0:00:04]}  Kb5 {[%clk 0:00:03]} 61. Rf3 {[%clk 0:00:04]}  Kxa5 {[%clk 0:00:03]} 62. h4 {[%clk 0:00:05]}  Kb5 {[%clk 0:00:04]} 63. Rh3 {[%clk 0:00:05]}  Rh7 {[%clk 0:00:05]} 64. h5 {[%clk 0:00:06]}  a5 {[%clk 0:00:05]} 65. h6 {[%clk 0:00:06]}  a4 {[%clk 0:00:06]} 66. Rg3 {[%clk 0:00:07]}  a3 {[%clk 0:00:07]} 67. Rg7 {[%clk 0:00:06]}  a2 {[%clk 0:00:05]} 68. Rxh7 {[%clk 0:00:02]}  a1=Q {[%clk 0:00:05]} 69. Rg7 {[%clk 0:00:03]}  Qb2+ {[%clk 0:00:04]} 70. Kf3 {[%clk 0:00:03]}  Qf6+ {[%clk 0:00:04]} 71. Bf4 {[%clk 0:00:03]}  Qc6+ {[%clk 0:00:03]} 72. Kg4 {[%clk 0:00:04]}  Qe6+ {[%clk 0:00:04]} 73. Kg5 {[%clk 0:00:04]}  Qd5+ {[%clk 0:00:02]} 74. Kg4 {[%clk 0:00:04]}  Qe6+ {[%clk 0:00:03]} 75. Kh5 {[%clk 0:00:04]}  Qf5+ {[%clk 0:00:02]} 76. Bg5 {[%clk 0:00:05]}  Qf3+ {[%clk 0:00:02]} 77. Kg6 {[%clk 0:00:05]}  Qe4+ {[%clk 0:00:03]} 78. Kf7 {[%clk 0:00:05]}  Qd5+ {[%clk 0:00:03]} 79. Kf8 {[%clk 0:00:05]}  Qc5+ {[%clk 0:00:02]} 80. Be7 {[%clk 0:00:04]}  Qf5+ {[%clk 0:00:02]} 81. Rf7 {[%clk 0:00:04]}  Qc8+ {[%clk 0:00:02]} 82. Kg7 {[%clk 0:00:04]}  Qc3+ {[%clk 0:00:02]} 83. Bf6 {[%clk 0:00:04]}  Qg3+ {[%clk 0:00:03]} 84. Kh8 {[%clk 0:00:04]}  Qb8+ {[%clk 0:00:03]} 85. Kh7 {[%clk 0:00:04]}  Qg3 {[%clk 0:00:02]} 86. Bg7 {[%clk 0:00:03]}  Kc6 {[%clk 0:00:01]} 87. Kg8 {[%clk 0:00:02]} 1-0


[Site "https://www.chess.com"]

[Event "Titled Tuesday Blitz January 31 Early 2023"]
[White "Rose, Felix"]
[Black "Slade, Theodore"]
[WhiteFideId "5105722"]
[BlackFideId "426547"]
[WhiteElo "2091"]
[BlackElo "1995"]
[Result "0-1"]
[Round "05"]
[TimeControl "180+2"]
[Date "2023.01.31"]
[WhiteClock "0:00:09"]
[BlackClock "0:01:32"]

1. e4 {[%clk 0:03:00]}  e5 {[%clk 0:03:00]} 2. Nf3 {[%clk 0:03:00]}  Nc6 {[%clk 0:03:01]} 3. Bb5 {[%clk 0:03:00]}  Nf6 {[%clk 0:03:01]} 4. O-O {[%clk 0:02:59]}  Nxe4 {[%clk 0:03:02]} 5. d4 {[%clk 0:02:59]}  Nd6 {[%clk 0:03:02]} 6. dxe5 {[%clk 0:02:59]}  Nxb5 {[%clk 0:03:02]} 7. a4 {[%clk 0:02:59]}  d6 {[%clk 0:02:44]} 8. axb5 {[%clk 0:02:54]}  Nxe5 {[%clk 0:02:40]} 9. Re1 {[%clk 0:02:52]}  Be7 {[%clk 0:02:33]} 10. Nxe5 {[%clk 0:02:51]}  dxe5 {[%clk 0:02:34]} 11. Qxd8+ {[%clk 0:02:51]}  Bxd8 {[%clk 0:02:29]} 12. Rxe5+ {[%clk 0:02:50]}  Be6 {[%clk 0:02:29]} 13. Nc3 {[%clk 0:02:48]}  O-O {[%clk 0:02:25]} 14. Bg5 {[%clk 0:02:35]}  Bxg5 {[%clk 0:02:17]} 15. Rxg5 {[%clk 0:02:35]}  Rfd8 {[%clk 0:02:16]} 16. Rc5 {[%clk 0:02:13]}  Rd7 {[%clk 0:02:16]} 17. h3 {[%clk 0:01:01]}  b6 {[%clk 0:02:12]} 18. Rc6 {[%clk 0:00:54]}  Kf8 {[%clk 0:01:58]} 19. Rd1 {[%clk 0:00:21]}  Rxd1+ {[%clk 0:01:54]} 20. Nxd1 {[%clk 0:00:21]}  Bd7 {[%clk 0:01:49]} 21. Rxc7 {[%clk 0:00:20]}  Bxb5 {[%clk 0:01:50]} 22. Ne3 {[%clk 0:00:18]}  Ke8 {[%clk 0:01:38]} 23. Nf5 {[%clk 0:00:17]}  Kf8 {[%clk 0:01:35]} 24. Nd6 {[%clk 0:00:17]}  Be8 {[%clk 0:01:34]} 25. b4 {[%clk 0:00:15]}  a5 {[%clk 0:01:32]} 26. c3 {[%clk 0:00:11]}  a4 {[%clk 0:01:32]} 27. Rb7 {[%clk 0:00:09]}  a3 {[%clk 0:01:32]} 28. Rxb6 {[%clk 0:00:09]}  a2 {[%clk 0:01:32]} 0-1


[Site "https://www.chess.com"]

[Event "Titled Tuesday Blitz January 31 Early 2023"]
[White "Lesbekova, Assel"]
[Black "Garv Gaur"]
[WhiteFideId "13713248"]
[BlackFideId "45030839"]
[WhiteElo "1772"]
[BlackElo "2006"]
[Result "0-1"]
[Round "05"]
[TimeControl "180+2"]
[Date "2023.01.31"]
[WhiteClock "0:00:05"]
[BlackClock "0:00:11"]

1. e4 {[%clk 0:03:00]}  c6 {[%clk 0:02:51]} 2. d4 {[%clk 0:03:00]}  d5 {[%clk 0:02:51]} 3. Nd2 {[%clk 0:03:00]}  dxe4 {[%clk 0:02:51]} 4. Nxe4 {[%clk 0:03:01]}  Bf5 {[%clk 0:02:51]} 5. Ng3 {[%clk 0:03:01]}  Bg6 {[%clk 0:02:50]} 6. Nh3 {[%clk 0:03:01]}  Nd7 {[%clk 0:02:47]} 7. Nf4 {[%clk 0:03:00]}  e6 {[%clk 0:02:47]} 8. h4 {[%clk 0:02:59]}  Ngf6 {[%clk 0:02:29]} 9. h5 {[%clk 0:02:50]}  Bf5 {[%clk 0:02:29]} 10. c3 {[%clk 0:02:46]}  Bd6 {[%clk 0:02:27]} 11. Nxf5 {[%clk 0:02:40]}  exf5 {[%clk 0:02:28]} 12. Bd3 {[%clk 0:02:41]}  Ne4 {[%clk 0:02:14]} 13. f3 {[%clk 0:02:29]}  Qg5 {[%clk 0:01:48]} 14. fxe4 {[%clk 0:02:15]}  Bxf4 {[%clk 0:01:26]} 15. Bxf4 {[%clk 0:02:12]}  Qxf4 {[%clk 0:01:26]} 16. Qf3 {[%clk 0:02:04]}  Qxf3 {[%clk 0:01:24]} 17. gxf3 {[%clk 0:02:04]}  fxe4 {[%clk 0:01:20]} 18. fxe4 {[%clk 0:02:05]}  c5 {[%clk 0:01:18]} 19. Kd2 {[%clk 0:01:56]}  O-O {[%clk 0:01:17]} 20. Rad1 {[%clk 0:01:49]}  Rad8 {[%clk 0:01:14]} 21. Rhf1 {[%clk 0:01:42]}  Nb6 {[%clk 0:01:11]} 22. Ke3 {[%clk 0:01:28]}  Rfe8 {[%clk 0:01:06]} 23. dxc5 {[%clk 0:01:22]}  Nd5+ {[%clk 0:00:47]} 24. Kf3 {[%clk 0:01:21]}  Nf6 {[%clk 0:00:47]} 25. h6 {[%clk 0:01:20]}  gxh6 {[%clk 0:00:35]} 26. Bc2 {[%clk 0:00:59]}  Nd7 {[%clk 0:00:33]} 27. b4 {[%clk 0:00:55]}  Ne5+ {[%clk 0:00:33]} 28. Ke2 {[%clk 0:00:52]}  h5 {[%clk 0:00:24]} 29. Rf5 {[%clk 0:00:38]}  Rxd1 {[%clk 0:00:19]} 30. Bxd1 {[%clk 0:00:28]}  h4 {[%clk 0:00:18]} 31. Rh5 {[%clk 0:00:24]}  Ng6 {[%clk 0:00:18]} 32. Kf3 {[%clk 0:00:22]}  Kg7 {[%clk 0:00:17]} 33. Bc2 {[%clk 0:00:20]}  Rd8 {[%clk 0:00:17]} 34. Rd5 {[%clk 0:00:19]}  Re8 {[%clk 0:00:17]} 35. Kg4 {[%clk 0:00:17]}  Re7 {[%clk 0:00:12]} 36. Rd1 {[%clk 0:00:14]}  Rc7 {[%clk 0:00:12]} 37. Rd8 {[%clk 0:00:13]}  b6 {[%clk 0:00:11]} 38. cxb6 {[%clk 0:00:13]}  axb6 {[%clk 0:00:12]} 39. Rb8 {[%clk 0:00:08]}  Rxc3 {[%clk 0:00:12]} 40. Bb3 {[%clk 0:00:09]}  h6 {[%clk 0:00:10]} 41. Rb7 {[%clk 0:00:06]}  Rg3+ {[%clk 0:00:10]} 42. Kf5 {[%clk 0:00:05]}  Rg5# {[%clk 0:00:11]} 0-1


[Site "https://www.chess.com"]

[Event "Titled Tuesday Blitz January 31 Early 2023"]
[White "Derjabin, Ilja"]
[Black "Mangialardo, Tiago Carvalho"]
[WhiteFideId "14104768"]
[BlackFideId "2130718"]
[WhiteElo "2333"]
[BlackElo "1965"]
[Result "1-0"]
[Round "05"]
[TimeControl "180+2"]
[Date "2023.01.31"]
[WhiteClock "0:02:14"]
[BlackClock "0:00:48"]

1. d4 {[%clk 0:03:00]}  d5 {[%clk 0:01:24]} 2. c4 {[%clk 0:02:58]}  Nf6 {[%clk 0:01:17]} 3. cxd5 {[%clk 0:02:56]}  Qxd5 {[%clk 0:01:16]} 4. Nc3 {[%clk 0:02:55]}  Qd8 {[%clk 0:01:16]} 5. e4 {[%clk 0:02:53]}  e6 {[%clk 0:01:17]} 6. Nf3 {[%clk 0:02:52]}  Be7 {[%clk 0:01:17]} 7. Be2 {[%clk 0:02:48]}  O-O {[%clk 0:01:16]} 8. O-O {[%clk 0:02:48]}  Nbd7 {[%clk 0:01:16]} 9. Bf4 {[%clk 0:02:42]}  b6 {[%clk 0:01:13]} 10. Nb5 {[%clk 0:02:38]}  Ne8 {[%clk 0:01:02]} 11. Rc1 {[%clk 0:02:35]}  Bd6 {[%clk 0:00:57]} 12. Nxd6 {[%clk 0:02:31]}  cxd6 {[%clk 0:00:51]} 13. Bg5 {[%clk 0:02:19]}  f6 {[%clk 0:00:49]} 14. Bh4 {[%clk 0:02:18]}  e5 {[%clk 0:00:49]} 15. dxe5 {[%clk 0:02:17]}  dxe5 {[%clk 0:00:50]} 16. Qd5+ {[%clk 0:02:14]}  Kh8 {[%clk 0:00:48]} 17. Qxa8 {[%clk 0:02:14]} 1-0


[Site "https://www.chess.com"]

[Event "Titled Tuesday Blitz January 31 Early 2023"]
[White "Osiecki, Stanislaw"]
[Black "Veiga, Jose Francisco R P Neves"]
[WhiteFideId "1102990"]
[BlackFideId "1930087"]
[WhiteElo "2055"]
[BlackElo "2406"]
[Result "1-0"]
[Round "05"]
[TimeControl "180+2"]
[Date "2023.01.31"]
[WhiteClock "0:01:31"]
[BlackClock "0:01:51"]

1. e4 {[%clk 0:02:51]}  Nc6 {[%clk 0:02:57]} 2. d4 {[%clk 0:02:48]}  d5 {[%clk 0:02:57]} 3. e5 {[%clk 0:02:48]}  Bf5 {[%clk 0:02:56]} 4. c3 {[%clk 0:02:46]}  e6 {[%clk 0:02:56]} 5. Bd3 {[%clk 0:02:46]}  Bxd3 {[%clk 0:02:56]} 6. Qxd3 {[%clk 0:02:45]}  f6 {[%clk 0:02:57]} 7. f4 {[%clk 0:02:44]}  Nh6 {[%clk 0:02:56]} 8. Ne2 {[%clk 0:02:43]}  Be7 {[%clk 0:02:56]} 9. exf6 {[%clk 0:02:39]}  Bxf6 {[%clk 0:02:56]} 10. O-O {[%clk 0:02:38]}  O-O {[%clk 0:02:56]} 11. Ng3 {[%clk 0:02:37]}  Qd7 {[%clk 0:02:56]} 12. h3 {[%clk 0:02:33]}  Ne7 {[%clk 0:02:56]} 13. Be3 {[%clk 0:02:31]}  Nef5 {[%clk 0:02:55]} 14. Nxf5 {[%clk 0:02:31]}  Nxf5 {[%clk 0:02:55]} 15. Bf2 {[%clk 0:02:32]}  Nd6 {[%clk 0:02:55]} 16. Nd2 {[%clk 0:02:30]}  b5 {[%clk 0:02:55]} 17. a3 {[%clk 0:02:30]}  a6 {[%clk 0:02:55]} 18. Nb3 {[%clk 0:02:30]}  Ne4 {[%clk 0:02:54]} 19. Nc5 {[%clk 0:02:29]}  Nxc5 {[%clk 0:02:51]} 20. dxc5 {[%clk 0:02:29]}  e5 {[%clk 0:02:48]} 21. fxe5 {[%clk 0:02:25]}  Bxe5 {[%clk 0:02:49]} 22. Bd4 {[%clk 0:02:21]}  Bf4 {[%clk 0:02:42]} 23. Rf3 {[%clk 0:02:16]}  c6 {[%clk 0:02:41]} 24. Raf1 {[%clk 0:02:15]}  Qc7 {[%clk 0:02:22]} 25. g3 {[%clk 0:01:56]}  Bh6 {[%clk 0:01:54]} 26. Rxf8+ {[%clk 0:01:51]}  Rxf8 {[%clk 0:01:55]} 27. Rxf8+ {[%clk 0:01:51]}  Kxf8 {[%clk 0:01:56]} 28. Qf5+ {[%clk 0:01:39]}  Ke7 {[%clk 0:01:52]} 29. Be5 {[%clk 0:01:31]}  Qd7 {[%clk 0:01:52]} 30. Bd6+ {[%clk 0:01:31]}  Ke8 {[%clk 0:01:51]} 31. Qf8# {[%clk 0:01:31]} 1-0


[Site "https://www.chess.com"]

[Event "Titled Tuesday Blitz January 31 Early 2023"]
[White "Aung Thant Zin"]
[Black "Elgersma, Onno"]
[WhiteFideId "13000063"]
[BlackFideId "1053531"]
[WhiteElo "2268"]
[BlackElo "2276"]
[Result "0-1"]
[Round "05"]
[TimeControl "180+2"]
[Date "2023.01.31"]
[WhiteClock "0:01:00"]
[BlackClock "0:00:44"]

1. e4 {[%clk 0:02:59]}  c6 {[%clk 0:02:49]} 2. d4 {[%clk 0:02:59]}  d5 {[%clk 0:02:45]} 3. Nc3 {[%clk 0:02:59]}  dxe4 {[%clk 0:02:43]} 4. Nxe4 {[%clk 0:03:00]}  Nf6 {[%clk 0:02:44]} 5. Nxf6+ {[%clk 0:03:00]}  exf6 {[%clk 0:02:44]} 6. Nf3 {[%clk 0:03:01]}  Bd6 {[%clk 0:02:45]} 7. Bd3 {[%clk 0:02:59]}  O-O {[%clk 0:02:45]} 8. h3 {[%clk 0:02:58]}  Re8+ {[%clk 0:02:45]} 9. Be3 {[%clk 0:02:57]}  Na6 {[%clk 0:02:45]} 10. O-O {[%clk 0:02:55]}  Nb4 {[%clk 0:02:41]} 11. Be2 {[%clk 0:02:51]}  Bf5 {[%clk 0:02:39]} 12. Ne1 {[%clk 0:02:40]}  Bc7 {[%clk 0:02:31]} 13. c3 {[%clk 0:02:22]}  Qd6 {[%clk 0:02:00]} 14. g3 {[%clk 0:01:46]}  Rxe3 {[%clk 0:01:43]} 15. fxe3 {[%clk 0:01:38]}  Qxg3+ {[%clk 0:01:42]} 16. Ng2 {[%clk 0:01:38]}  Qh2+ {[%clk 0:01:09]} 17. Kf2 {[%clk 0:01:38]}  Bg3+ {[%clk 0:00:56]} 18. Kf3 {[%clk 0:01:37]}  Qxh3 {[%clk 0:00:56]} 19. e4 {[%clk 0:01:02]}  Bh4+ {[%clk 0:00:47]} 20. Kf4 {[%clk 0:01:00]}  Bg5# {[%clk 0:00:44]} 0-1


[Site "https://www.chess.com"]

[Event "Titled Tuesday Blitz January 31 Early 2023"]
[White "Kalogeris, Ioannis"]
[Black "Heinemann, Josefine"]
[WhiteFideId "4239563"]
[BlackFideId "12900460"]
[WhiteElo "2423"]
[BlackElo "2289"]
[Result "1-0"]
[Round "05"]
[TimeControl "180+2"]
[Date "2023.01.31"]
[WhiteClock "0:00:54"]
[BlackClock "0:00:24"]

1. e4 {[%clk 0:03:00]}  e5 {[%clk 0:02:58]} 2. Nf3 {[%clk 0:02:59]}  Nc6 {[%clk 0:02:58]} 3. Bb5 {[%clk 0:02:57]}  a6 {[%clk 0:02:57]} 4. Ba4 {[%clk 0:02:53]}  Nf6 {[%clk 0:02:56]} 5. Bxc6 {[%clk 0:02:53]}  dxc6 {[%clk 0:02:55]} 6. d3 {[%clk 0:02:54]}  Bd6 {[%clk 0:02:51]} 7. O-O {[%clk 0:02:53]}  Bg4 {[%clk 0:02:49]} 8. Nbd2 {[%clk 0:02:51]}  Qe7 {[%clk 0:02:47]} 9. Nc4 {[%clk 0:02:51]}  Nd7 {[%clk 0:02:46]} 10. Ne3 {[%clk 0:02:49]}  h5 {[%clk 0:02:43]} 11. h3 {[%clk 0:02:47]}  Bxf3 {[%clk 0:02:39]} 12. Qxf3 {[%clk 0:02:46]}  g6 {[%clk 0:02:40]} 13. a4 {[%clk 0:02:40]}  O-O-O {[%clk 0:02:39]} 14. Nc4 {[%clk 0:02:36]}  Nf8 {[%clk 0:02:37]} 15. c3 {[%clk 0:02:25]}  Ne6 {[%clk 0:02:36]} 16. b4 {[%clk 0:02:23]}  g5 {[%clk 0:02:27]} 17. Qf5 {[%clk 0:02:16]}  Kb8 {[%clk 0:02:03]} 18. b5 {[%clk 0:02:11]}  a5 {[%clk 0:01:56]} 19. bxc6 {[%clk 0:02:09]}  b6 {[%clk 0:01:56]} 20. Nxe5 {[%clk 0:01:52]}  Bxe5 {[%clk 0:01:55]} 21. Qxe5 {[%clk 0:01:51]}  f6 {[%clk 0:01:54]} 22. Qb5 {[%clk 0:01:47]}  Qc5 {[%clk 0:01:44]} 23. d4 {[%clk 0:01:39]}  Qxc3 {[%clk 0:01:12]} 24. Bb2 {[%clk 0:01:35]}  Qc2 {[%clk 0:01:07]} 25. d5 {[%clk 0:01:29]}  Nc5 {[%clk 0:01:03]} 26. Rfc1 {[%clk 0:01:23]}  Qxe4 {[%clk 0:00:39]} 27. Rxc5 {[%clk 0:01:15]}  Ka7 {[%clk 0:00:39]} 28. Bxf6 {[%clk 0:01:11]}  Rhf8 {[%clk 0:00:32]} 29. Bxd8 {[%clk 0:01:10]}  Rxd8 {[%clk 0:00:31]} 30. Rb1 {[%clk 0:00:58]}  g4 {[%clk 0:00:24]} 31. Qxa5+ {[%clk 0:00:55]}  bxa5 {[%clk 0:00:24]} 32. Rxa5# {[%clk 0:00:54]} 1-0


[Site "https://www.chess.com"]